fUSD/lending_fUSD_20240301
["ID","MTS","AMOUNT","RATE_DAILY","PERIOD"]
[316006897,1709323865258,-514.02194776,0.00022246,2]
[316006898,1709323865268,-500.0,0.00022246,2]
[316006899,1709323865278,-500.0,0.00022246,2]
[316006900,1709323865289,-500.0,0.00022246,2]
[316006901,1709323865299,-500.0,0.00022246,2]
[316006902,1709323865308,-500.0,0.00022246,2]
[316006903,1709323865320,-500.0,0.00022246,2]
[316006904,1709323865330,-500.0,0.00022246,2]
[316006905,1709323865340,-500.0,0.00022246,2]
[316006906,1709323865351,-500.0,0.00022246,2]
[316006907,1709323865363,-500.0,0.00022246,2]
[316006908,1709323865374,-546.28,0.00022246,2]
[316006909,1709323865385,-500.0,0.00022246,2]
[316006910,1709323865399,-500.0,0.00022246,2]
[316006911,1709323865409,-500.0,0.00022246,2]
[316006912,1709323865420,-500.0,0.00022246,2]
[316006913,1709323865431,-500.0,0.00022246,2]
[316006914,1709323865441,-500.0,0.00022246,2]
[316006915,1709323865451,-707.16,0.00022246,2]
[316006916,1709323865461,-564.67530806,0.00022246,2]
[316006917,1709323865471,-500.0,0.00022246,2]
[316006918,1709323865482,-520.64,0.00022246,2]
[316006919,1709323865492,-500.0,0.00022246,2]
[316006920,1709323865503,-498.88,0.00022246,2]
[316006921,1709323865513,-500.0,0.00022246,2]
[316006922,1709323865523,-500.0,0.00022246,2]
[316006923,1709323865532,-500.0,0.00022246,2]
[316006924,1709323865543,-500.0,0.00022246,2]
[316006925,1709323865554,-559.36905504,0.00022246,2]
[316006926,1709323865564,-500.0,0.00022246,2]
[316006927,1709323865575,-568.46,0.00022246,2]
[316006928,1709323865585,-933.14,0.00022246,2]
[316006929,1709323865597,-500.0,0.00022246,2]
[316006930,1709323865608,-500.0,0.00022246,2]
[316006931,1709323865619,-500.0,0.00022246,2]
[316006932,1709323865633,-150.0,0.00022246,2]
[316006933,1709323865643,-500.0,0.00022246,2]
[316006934,1709323865654,-500.0,0.00022246,2]
[316006935,1709323865664,-1792.9,0.00022246,2]
[316006936,1709323865675,-500.0,0.00022246,2]
[316006937,1709323865684,-500.0,0.00022246,2]
[316006938,1709323865694,-500.0,0.00022246,2]
[316006939,1709323865705,-500.0,0.00022246,2]
[316006940,1709323865716,-500.0,0.00022246,2]
[316006941,1709323865726,-500.0,0.00022246,2]
[316006942,1709323865736,-500.0,0.00022246,2]
[316006943,1709323865747,-500.0,0.00022246,2]
[316006944,1709323865756,-231.24775988,0.00022246,2]
[316006945,1709323865766,-500.0,0.00022246,2]
[316006946,1709323865777,-158.90138245,0.00022246,2]
[316006947,1709323865788,-500.0,0.00022246,2]
[316006948,1709323865799,-500.0,0.00022246,2]
[316006949,1709323865809,-500.0,0.00022246,2]
[316006950,1709323865819,-500.0,0.00022246,2]
[316006951,1709323865829,-500.0,0.00022246,2]
[316006952,1709323865839,-500.0,0.00022246,2]
[316006953,1709323865849,-622.21,0.00022246,2]
[316006954,1709323865860,-896.99,0.00022246,2]
[316006955,1709323865870,-833.33,0.00022246,2]
[316006956,1709323865881,-525.07,0.00022246,2]
[316006957,1709323865891,-500.0,0.00022246,2]
[316006958,1709323865901,-500.0,0.00022246,2]
[316006959,1709323865911,-500.0,0.00022246,2]
[316006960,1709323865921,-500.0,0.00022246,2]
[316006961,1709323865935,-500.0,0.00022246,2]
[316006962,1709323865945,-500.0,0.00022246,2]
[316006963,1709323865955,-500.0,0.00022246,2]
[316006964,1709323865964,-500.0,0.00022246,2]
[316006965,1709323865974,-624.2,0.00022246,2]
[316006966,1709323865984,-500.0,0.00022246,2]
[316006967,1709323865993,-500.0,0.00022246,2]
[316006968,1709323866003,-613.73,0.00022246,2]
[316006969,1709323866013,-500.0,0.00022246,2]
[316006970,1709323866023,-500.0,0.00022246,2]
[316006971,1709323866033,-500.0,0.00022246,2]
[316006972,1709323866042,-500.0,0.00022246,2]
[316006973,1709323866052,-938.01,0.00022246,2]
[316006974,1709323866062,-697.58,0.00022246,2]
[316006975,1709323866072,-238.866837,0.00022246,2]
[316006976,1709323866082,-238.866837,0.00022246,2]
[316006977,1709323866092,-260.67,0.00022246,2]
[316006978,1709323866103,-1373.75,0.00022246,2]
[316006979,1709323866113,-500.0,0.00022246,2]
[316006980,1709323866123,-500.0,0.00022246,2]
[316006981,1709323866133,-585.69,0.00022246,2]
[316006982,1709323866142,-500.0,0.00022246,2]
[316006983,1709323866152,-530.86,0.00022246,2]
[316006984,1709323866162,-500.0,0.00022246,2]
[316006985,1709323866172,-500.0,0.00022246,2]
[316006986,1709323866182,-1192.49,0.00022246,2]
[316006987,1709323866193,-500.0,0.00022246,2]
[316006988,1709323866202,-500.0,0.00022246,2]
[316006989,1709323866212,-2601.97,0.00022246,2]
[316006990,1709323866222,-500.0,0.00022246,2]
[316006991,1709323866233,-500.0,0.00022246,2]
[316006992,1709323866243,-530.62,0.00022246,2]
[316006993,1709323866252,-561.52167614,0.00022246,2]
[316006994,1709323866262,-1930.6,0.00022246,2]
[316006995,1709323866272,-500.0,0.00022246,2]
[316006996,1709323866282,-755.31,0.00022246,2]
[316006997,1709323866292,-2139.32,0.00022246,2]
[316006998,1709323866301,-500.0,0.00022246,2]
[316006999,1709323866312,-1171.44,0.00022246,2]
[316007000,1709323866322,-2357.47,0.00022246,2]
[316007001,1709323866331,-500.0,0.00022246,2]
[316007002,1709323866341,-500.0,0.00022246,2]
[316007003,1709323866351,-1358.91,0.00022246,2]
[316007004,1709323866362,-1472.76,0.00022246,2]
[316007005,1709323866371,-1024.85,0.00022246,2]
[316007006,1709323866381,-500.0,0.00022246,2]
[316007007,1709323866391,-500.0,0.00022246,2]
[316007008,1709323866401,-500.0,0.00022246,2]
[316007009,1709323866411,-587.18,0.00022246,2]
[316007010,1709323866421,-5140.66,0.00022246,2]
[316007011,1709323866431,-715.68,0.00022246,2]
[316007012,1709323866442,-772.83,0.00022246,2]
[316007013,1709323866453,-500.0,0.00022246,2]
[316007014,1709323866463,-151.0,0.00022246,7]
[316007015,1709323866474,-500.0,0.00022246,2]
[316007016,1709323866485,-500.0,0.00022246,2]
[316007017,1709323866496,-500.0,0.00022246,2]
[316007018,1709323866506,-1502.89,0.00022246,2]
[316007019,1709323866517,-19950.18,0.00022246,2]
[316007020,1709323866527,-500.0,0.00022246,2]
[316007021,1709323866538,-1700.71,0.00022246,2]
[316007022,1709323866549,-522.76,0.00022246,2]
[316007023,1709323866560,-216.770942,0.00022246,7]
[316007024,1709323866571,-500.0,0.00022246,2]
[316007025,1709323866581,-2645.67,0.00022246,2]
[316007026,1709323866591,-500.0,0.00022246,2]
[316007027,1709323866601,-1471.09,0.00022246,2]
[316007028,1709323866612,-663.65,0.00022246,2]
[316007029,1709323866624,-1610.96,0.00022246,2]
[316007030,1709323866634,-500.0,0.00022246,2]
[316007031,1709323866646,-500.0,0.00022246,2]
[316007032,1709323866656,-500.0,0.00022246,2]
[316007033,1709323866666,-201.8710252,0.00022246,2]
[316007034,1709323866675,-500.0,0.00022246,2]
[316007035,1709323866685,-501.45,0.00022246,2]
[316007036,1709323866697,-500.0,0.00022246,2]
[316007037,1709323866708,-1625.57,0.00022246,2]
[316007038,1709323866717,-500.0,0.00022246,2]
[316007039,1709323866727,-21083.25,0.00022246,2]
[316007040,1709323866737,-500.0,0.00022246,2]
[316007041,1709323866746,-868.78,0.00022246,2]
[316007042,1709323866756,-812.97,0.00022246,2]
[316007043,1709323866764,-500.0,0.00022246,2]
[316007044,1709323866774,-909.41,0.00022246,2]
[316007045,1709323866784,-500.0,0.00022246,2]
[316007046,1709323866793,-548.51430495,0.00022246,2]
[316007047,1709323866802,-1021.4,0.00022246,2]
[316007048,1709323866964,-500.0,0.00022246,2]
[316007049,1709323866975,-500.0,0.00022246,2]
[316007050,1709323866984,-1297.81,0.00022246,2]
[316007051,1709323866994,-1070.78,0.00022246,2]
[316007052,1709323867003,-500.0,0.00022246,2]
[316007053,1709323867013,-500.0,0.00022246,2]
[316007054,1709323867022,-500.0,0.00022246,2]
[316007055,1709323867031,-697.28,0.00022246,2]
[316007056,1709323867040,-1107.62,0.00022246,2]
[316007057,1709323867049,-968.03,0.00022246,2]
[316007058,1709323867059,-500.0,0.00022246,2]
[316007059,1709323867068,-729.02,0.00022246,2]
[316007060,1709323867078,-587.56,0.00022246,2]
[316007061,1709323867088,-1016.74,0.00022246,2]
[316007062,1709323867097,-500.0,0.00022246,2]
[316007063,1709323867107,-500.0,0.00022246,2]
[316007064,1709323867118,-417.52641039,0.00022246,2]
[316007065,1709323867127,-500.0,0.00022246,2]
[316007066,1709323867136,-3704.81,0.00022246,2]
[316007067,1709323867145,-556.99,0.00022246,2]
[316007068,1709323867155,-625.2,0.00022246,2]
[316007069,1709323867165,-500.0,0.00022246,2]
[316007070,1709323867174,-500.0,0.00022246,2]
[316007071,1709323867183,-628.25,0.00022246,2]
[316007072,1709323867193,-500.0,0.00022246,2]
[316007073,1709323867202,-500.0,0.00022246,2]
[316007074,1709323867211,-500.0,0.00022246,2]
[316007075,1709323867221,-500.0,0.00022246,2]
[316007076,1709323867231,-890.19,0.00022246,2]
[316007077,1709323867240,-4053.77,0.00022246,2]
[316007078,1709323867250,-715.9,0.00022246,2]
[316007079,1709323867259,-820.3,0.00022246,2]
[316007080,1709323867268,-766.04,0.00022246,2]
[316007081,1709323867277,-2754.16,0.00022246,2]
[316007082,1709323867287,-604.43,0.00022246,2]
[316007083,1709323867296,-500.0,0.00022246,2]
[316007084,1709323867305,-2812.76,0.00022246,2]
[316007085,1709323867315,-1363.48,0.00022246,2]
[316007086,1709323867324,-1022.61,0.00022246,2]
[316007087,1709323867334,-360.24739669,0.00022246,2]
[316007088,1709323867343,-2010.22,0.00022246,2]
[316007089,1709323867352,-500.0,0.00022246,2]
[316007090,1709323867363,-1149.0,0.00022246,2]
[316007091,1709323867373,-670.14,0.00022246,2]
[316007092,1709323867382,-415.04846367,0.00022246,2]
[316007093,1709323867391,-1294.41,0.00022246,2]
[316007094,1709323867401,-195.28213,0.00022246,7]
[316007095,1709323867410,-500.0,0.00022246,2]
[316007096,1709323867419,-500.0,0.00022246,2]
[316007097,1709323867429,-195.28213,0.00022246,7]
[316007098,1709323867438,-576.51,0.00022246,2]
[316007099,1709323867448,-478.70132143,0.00022246,2]
[316007100,1709323867512,-561.22867857,0.00022246,2]
[316007101,1709323867522,-500.0,0.00022246,2]
[316007102,1709323867532,-552.75,0.00022246,2]
[316007103,1709323867542,-2386.02132143,0.00022246,2]
[316007104,1709323869756,-500.0,0.000218,2]
[316007105,1709323869766,-630.60515198,0.000218,2]
[316007106,1709323869778,-3431.00000009,0.000218,2]
[316007107,1709323869789,-71108.5381534,0.000218,2]
[316007108,1709323869801,-6411.38438209,0.000218,2]
[316007109,1709323869835,-316.01463883,0.000218,2]
[316007110,1709323869847,-530.6637771,0.000218,2]
[316007111,1709323869859,-519.17755866,0.000218,2]
[316007112,1709323869890,-650.0,0.000218,2]
[316007113,1709323869903,-16402.61633785,0.000218,2]
[316007114,1709323869913,-211.0,0.000218,2]
[316007115,1709323869922,-500.0,0.00021917,2]
[316007116,1709323869931,-500.0,0.00021917,2]
[316007117,1709323869941,-505.96285274,0.00021917,2]
[316007118,1709323869950,-500.0,0.00021917,2]
[316007119,1709323869959,-6731.29,0.00021917,2]
[316007120,1709323869969,-500.0,0.00021917,2]
[316007121,1709323869979,-500.0,0.00021917,2]
[316007122,1709323869988,-500.0,0.00021917,2]
[316007123,1709323869998,-500.0,0.00021917,2]
[316007124,1709323870008,-151.0,0.00021918,2]
[316007125,1709323870017,-151.0,0.00021918,2]
[316007126,1709323870027,-781.7080097,0.00022,2]
[316007127,1709323870040,-10518.58899748,0.00022,2]
[316007128,1709323870050,-500.0,0.00022027,2]
[316007129,1709323870060,-151.0,0.00022027,7]
[316007130,1709323870069,-151.0,0.00022027,7]
[316007131,1709323870079,-4418.43628252,0.00022027,2]
[316007132,1709323870544,-500.0,0.00021917,2]
[316007133,1709323870553,-500.0,0.00021917,2]
[316007134,1709323870562,-500.0,0.00021917,2]
[316007135,1709323870572,-352.64879787,0.00022027,2]
[316007136,1709323870717,-500.0,0.00021917,2]
[316007137,1709323870727,-202.74305284,0.00021917,2]
[316007138,1709323870739,-297.25694716,0.00021917,2]
[316007139,1709323870749,-500.0,0.00021917,2]
[316007140,1709323870759,-1960.20491961,0.00022027,2]
[316007141,1709323870769,-500.0,0.00022027,2]
[316007142,1709323870780,-500.0,0.00022027,2]
[316007143,1709323870790,-500.0,0.00022027,2]
[316007144,1709323870800,-271.670678,0.00022027,7]
[316007145,1709323870810,-500.0,0.00022027,2]
[316007146,1709323870819,-568.55,0.00022027,2]
[316007147,1709323870829,-149.70006917,0.00022027,2]
[316007148,1709323870841,-350.29993083,0.00022027,2]
[316007149,1709323870850,-67.74244842,0.00022136,2]
[316007150,1709323870864,-100.68755158,0.00022136,2]
[316007151,1709323870874,-6731.29,0.00022136,2]
[316007152,1709323870884,-500.0,0.00022136,2]
[316007153,1709323870894,-500.0,0.00022136,2]
[316007154,1709323870903,-500.0,0.00022136,2]
[316007155,1709323870914,-208.30867857,0.00022246,2]
[316007156,1709323870924,-173.26178305,0.00022246,2]
[316007157,1709323870941,-500.0,0.00022027,2]
[316007158,1709323870950,-609.75821695,0.00022246,2]
[316007159,1709323870960,-2678.0,0.00022246,2]
[316007160,1709323870971,-500.0,0.00022246,2]
[316007161,1709323870980,-215.87,0.00022246,2]
[316007162,1709323870990,-500.0,0.00022246,2]
[316007163,1709323870999,-1463.8,0.00022246,2]
[316007164,1709323871009,-562.42,0.00022246,2]
[316007165,1709323871019,-2022.06,0.00022246,2]
[316007166,1709323871029,-1183.11,0.00022246,2]
[316007167,1709323871039,-1493.68,0.00022246,2]
[316007168,1709323871048,-1027.3,0.00022246,2]
[316007169,1709323871057,-500.0,0.00022246,2]
[316007170,1709323871067,-500.0,0.00022246,2]
[316007171,1709323871075,-500.0,0.00022246,2]
[316007172,1709323871085,-773.9,0.00022246,2]
[316007173,1709323871094,-4687.31,0.00022246,2]
[316007174,1709323871103,-1364.59,0.00022246,2]
[316007175,1709323871113,-1579.17,0.00022246,2]
[316007176,1709323871123,-500.0,0.00022246,2]
[316007177,1709323871132,-816.82,0.00022246,2]
[316007178,1709323871141,-500.0,0.00022246,2]
[316007179,1709323871152,-500.0,0.00022246,2]
[316007180,1709323871163,-500.0,0.00022246,2]
[316007181,1709323871173,-1098.21,0.00022246,2]
[316007182,1709323871182,-4424.00178305,0.00022246,2]
[316007183,1709323872581,-500.0,0.00021917,2]
[316007184,1709323872596,-500.0,0.00021917,2]
[316007185,1709323872612,-500.0,0.00021917,2]
[316007186,1709323872629,-500.0,0.00022027,2]
[316007187,1709323872645,-551.49,0.00022136,2]
[316007188,1709323872662,-500.0,0.00022136,2]
[316007189,1709323872675,-63.8783,0.00022136,2]
[316007190,1709323872696,-436.1217,0.00022136,2]
[316007191,1709323872712,-2602.80723247,0.00022246,2]
[316007192,1709323872747,-3081.01329803,0.00022246,2]
[316007193,1709323873903,-730.24297491,0.00021817,2]
[316007194,1709323873915,-1016.1093768,0.00021817,2]
[316007195,1709323873924,-500.0,0.00021917,2]
[316007196,1709323873934,-500.0,0.00021917,2]
[316007197,1709323873943,-947.31,0.00021917,2]
[316007198,1709323873953,-500.0,0.00021917,2]
[316007199,1709323873962,-500.0,0.00021917,2]
[316007200,1709323873971,-500.0,0.00021917,2]
[316007201,1709323873981,-500.0,0.00022027,2]
[316007202,1709323873990,-500.0,0.00022027,2]
[316007203,1709323874000,-235.18,0.00022027,2]
[316007204,1709323874010,-947.31,0.00022027,2]
[316007205,1709323874018,-500.0,0.00022027,2]
[316007206,1709323874027,-500.0,0.00022027,2]
[316007207,1709323874037,-500.0,0.00022027,2]
[316007208,1709323874046,-500.0,0.00022136,2]
[316007209,1709323874055,-500.0,0.00022136,2]
[316007210,1709323874064,-947.31,0.00022136,2]
[316007211,1709323874073,-500.0,0.00022136,2]
[316007212,1709323874083,-1083.42768645,0.00022246,2]
[316007213,1709323874092,-500.0,0.00022246,2]
[316007214,1709323874101,-277.21613296,0.00022246,2]
[316007215,1709323874111,-1009.32,0.00022246,2]
[316007216,1709323874122,-1330.17,0.00022246,2]
[316007217,1709323874131,-500.0,0.00022246,2]
[316007218,1709323874141,-1884.22,0.00022246,2]
[316007219,1709323874150,-199.28188675,0.00022246,2]
[316007220,1709323874159,-3725.77,0.00022246,2]
[316007221,1709323874169,-791.62,0.00022246,2]
[316007222,1709323874186,-500.0,0.00022246,2]
[316007223,1709323874195,-965.26,0.00022246,2]
[316007224,1709323874204,-500.0,0.00022246,2]
[316007225,1709323874213,-500.0,0.00022246,2]
[316007226,1709323874224,-500.0,0.00022246,2]
[316007227,1709323874233,-294.96,0.00022246,2]
[316007228,1709323874242,-500.0,0.00022246,2]
[316007229,1709323874251,-500.0,0.00022246,2]
[316007230,1709323874261,-605.77,0.00022246,2]
[316007231,1709323874271,-2931.93,0.00022246,2]
[316007232,1709323874280,-646.09,0.00022246,2]
[316007233,1709323874289,-509.66484796,0.00022246,2]
[316007234,1709323874298,-500.0,0.00022246,2]
[316007235,1709323874307,-500.0,0.00022246,2]
[316007236,1709323874317,-500.0,0.00022246,2]
[316007237,1709323874326,-6411.54,0.00022246,2]
[316007238,1709323874335,-500.0,0.00022246,2]
[316007239,1709323874344,-500.0,0.00022246,2]
[316007240,1709323874354,-1805.15,0.00022246,2]
[316007241,1709323874363,-587.03,0.00022246,2]
[316007242,1709323874374,-849.86,0.00022246,2]
[316007243,1709323874384,-1498.84,0.00022246,2]
[316007244,1709323874394,-621.83,0.00022246,2]
[316007245,1709323874403,-500.0,0.00022246,2]
[316007246,1709323874414,-11542.81,0.00022246,2]
[316007247,1709323874423,-500.0,0.00022246,2]
[316007248,1709323874432,-660.97,0.00022246,2]
[316007249,1709323874443,-500.0,0.00022246,2]
[316007250,1709323874453,-525.42,0.00022246,2]
[316007251,1709323874462,-1220.78,0.00022246,2]
[316007252,1709323874471,-500.0,0.00022246,2]
[316007253,1709323874481,-5230.42,0.00022246,2]
[316007254,1709323874490,-928.56,0.00022246,2]
[316007255,1709323874501,-1567.33,0.00022246,2]
[316007256,1709323874510,-500.0,0.00022246,2]
[316007257,1709323874520,-500.8861114,0.00022246,2]
[316007258,1709323874533,-6302.4438886,0.00022246,2]
[316007259,1709323874543,-1315.36,0.00022246,2]
[316007260,1709323874553,-500.0,0.00022246,2]
[316007261,1709323874562,-1098.94,0.00022246,2]
[316007262,1709323874571,-500.0,0.00022246,2]
[316007263,1709323874581,-752.81,0.00022246,2]
[316007264,1709323874590,-500.0,0.00022246,2]
[316007265,1709323874600,-500.0,0.00022246,2]
[316007266,1709323874609,-1244.11,0.00022246,2]
[316007267,1709323874623,-1915.79,0.00022246,2]
[316007268,1709323874632,-1905.39,0.00022246,2]
[316007269,1709323874642,-844.94,0.00022246,2]
[316007270,1709323874651,-474.51326002,0.00022246,2]
[316007271,1709323874693,-25.48673998,0.00022246,2]
[316007272,1709323874703,-229.76326002,0.00022246,2]
[316007273,1709323874715,-967.95673998,0.00022246,2]
[316007274,1709323874725,-500.0,0.00022246,2]
[316007275,1709323874734,-500.0,0.00022246,2]
[316007276,1709323874744,-500.0,0.00022246,2]
[316007277,1709323874753,-500.0,0.00022246,2]
[316007278,1709323874763,-9598.76,0.00022246,2]
[316007279,1709323874773,-500.0,0.00022246,2]
[316007280,1709323874783,-5566.13,0.00022246,2]
[316007281,1709323874792,-3238.46,0.00022246,2]
[316007282,1709323874801,-151.0,0.00022246,7]
[316007283,1709323874811,-500.0,0.00022246,2]
[316007284,1709323874821,-500.0,0.00022246,2]
[316007285,1709323874830,-625.01,0.00022246,2]
[316007286,1709323874840,-2107.74,0.00022246,2]
[316007287,1709323874849,-210.342084,0.00022246,7]
[316007288,1709323874859,-500.0,0.00022246,2]
[316007289,1709323874869,-752.31,0.00022246,2]
[316007290,1709323874879,-3096.5,0.00022246,2]
[316007291,1709323874888,-500.0,0.00022246,2]
[316007292,1709323874898,-500.0,0.00022246,2]
[316007293,1709323874908,-500.0,0.00022246,2]
[316007294,1709323874917,-1267.67,0.00022246,2]
[316007295,1709323874927,-1108.88,0.00022246,2]
[316007296,1709323874936,-1239.93,0.00022246,2]
[316007297,1709323874946,-500.0,0.00022246,2]
[316007298,1709323874955,-500.0,0.00022246,2]
[316007299,1709323874964,-2367.72,0.00022246,2]
[316007300,1709323874973,-500.0,0.00022246,2]
[316007301,1709323874982,-500.0,0.00022246,2]
[316007302,1709323874991,-1572.31,0.00022246,2]
[316007303,1709323875001,-500.0,0.00022246,2]
[316007304,1709323875010,-500.0,0.00022246,2]
[316007305,1709323875019,-851.32,0.00022246,2]
[316007306,1709323875029,-7236.21724579,0.00022246,2]
[316007307,1709323875120,-496.716,0.00022246,2]
[316007308,1709323875198,-25.58990558,0.00022246,2]
[316007309,1709323875218,-175.05684863,0.00022246,2]
[316007310,1709323875228,-500.0,0.00022246,2]
[316007311,1709323875237,-500.0,0.00022246,2]
[316007312,1709323875246,-1340.26,0.00022246,2]
[316007313,1709323875255,-809.21,0.00022246,2]
[316007314,1709323875265,-815.73,0.00022246,2]
[316007315,1709323875273,-1131.25,0.00022246,2]
[316007316,1709323875283,-6260.63,0.00022246,2]
[316007317,1709323875292,-500.0,0.00022246,2]
[316007318,1709323875301,-600.0,0.00022246,2]
[316007319,1709323875311,-500.0,0.00022246,2]
[316007320,1709323875321,-743.1,0.00022246,2]
[316007321,1709323875330,-4121.89,0.00022246,2]
[316007322,1709323875340,-2061.75,0.00022246,2]
[316007323,1709323875349,-708.56,0.00022246,2]
[316007324,1709323875359,-2921.2,0.00022246,2]
[316007325,1709323875370,-4170.86,0.00022246,2]
[316007326,1709323875379,-595.18,0.00022246,2]
[316007327,1709323875389,-11386.20546644,0.00022246,2]
[316007328,1709323875567,-427.57,0.00022136,2]
[316007329,1709323875577,-176.49453356,0.00022246,2]
[316007330,1709323875586,-500.0,0.00022246,2]
[316007331,1709323875596,-1585.35,0.00022246,2]
[316007332,1709323875609,-500.0,0.00022246,2]
[316007333,1709323875619,-240.88546646,0.00022246,2]
[316007334,1709323875642,-259.11453354,0.00022246,2]
[316007335,1709323875652,-981.61248646,0.00022246,2]
[316007338,1709324045294,204.0,0.00018824,2]
[316007339,1709324067356,-204.01923883,0.00019817,2]
[316007340,1709324067623,-546.60403373,0.00019818,2]
[316007341,1709324067655,-408.79186619,0.00019819,2]
[316007342,1709324067685,-2964.69771375,0.0001982,2]
[316007343,1709324067714,-154.4,0.00020203,2]
[316007344,1709324135974,659.29,0.00019017,2]
[316007345,1709324144298,62.1971475,0.00020412,2]
[316007346,1709324315322,207.0,0.00018824,2]
[316007347,1709324417383,363.87706547,0.00018824,2]
[316007348,1709324432339,155.0,0.00018824,2]
[316007349,1709324435322,242.58471031,0.00018824,2]
[316007350,1709324452268,172.40665434,0.00018824,2]
[316007351,1709324459333,202.15392526,0.00018824,2]
[316007352,1709324479328,202.15392526,0.00018824,2]
[316007353,1709324495342,155.0,0.00018824,2]
[316007354,1709324513327,155.0,0.00018824,2]
[316007355,1709324531336,155.0,0.00018824,2]
[316007356,1709324551563,155.0,0.00018824,2]
[316007357,1709324570837,155.0,0.00018824,2]
[316007358,1709324588087,752.29,0.00016823,2]
[316007359,1709324590846,235.76962632,0.00018824,2]
[316007360,1709324634107,4665.18,0.00018683,2]
[316007361,1709324638498,200.0,0.00018683,2]
[316007363,1709324703882,170.06,0.00018495,2]
[316007364,1709324706644,1633.71,0.00018643,2]
[316007365,1709324718852,3805.06,0.00018495,2]
[316007366,1709324755675,820.09,0.00018622,2]
[316007367,1709324755862,5000.0,0.0001885,2]
[316007368,1709324756377,166.06,0.00018622,10]
[316007369,1709324779321,8178.73,0.00018563,2]
[316007370,1709324795281,5200.0,0.0001885,2]
[316007371,1709324808570,200.0,0.00018549,2]
[316007372,1709324820625,151.44,0.00018677,2]
[316007373,1709324820752,151.44,0.00018775,2]
[316007374,1709324839404,-234.84782212,0.00018871,2]
[316007375,1709324839426,-151.44,0.00018872,2]
[316007376,1709324839448,-2138.99822812,0.0001888,2]
[316007377,1709324839467,-155.0,0.00018881,2]
[316007378,1709324839490,-293.74451204,0.00018881,2]
[316007379,1709324839511,-1009.64255081,0.00018881,2]
[316007380,1709324839531,-150.0,0.00018882,2]
[316007381,1709324839553,-300.0,0.00018882,2]
[316007382,1709324839574,-258.51689611,0.00018882,2]
[316007383,1709324839594,-155.0,0.00018882,2]
[316007384,1709324839613,-423.02975116,0.00018882,2]
[316007385,1709324839632,-204.01923883,0.00018882,2]
[316007386,1709324839652,-155.0,0.00018883,2]
[316007387,1709324839671,-1057.72421204,0.00018883,2]
[316007388,1709324839690,-19400.70729763,0.00018884,2]
[316007389,1709324839709,-2742.2926,0.00018898,2]
[316007390,1709324839730,-151.44,0.00018969,2]
[316007391,1709324839748,-1129.33702833,0.00018999,2]
[316007392,1709324839767,-250.0,0.00019,2]
[316007393,1709324839787,-150.0,0.00019,2]
[316007394,1709324839806,-150.0,0.00019,2]
[316007395,1709324839824,-150.0,0.00019,2]
[316007396,1709324839844,-178.0,0.00019,2]
[316007397,1709324839862,-150.0,0.00019,2]
[316007398,1709324839881,-500.0,0.00019,2]
[316007399,1709324839900,-259.9,0.00019,2]